[Event "Late-Titled-Tuesday-Blitz-April-23-2024"]
[Site "Chess.com"]
[Date "2024.04.23"]
[Round "2"]
[White "Good_Knight_Kiss"]
[Black "Sesleria"]
[Result "1-0"]
[WhiteElo "2457"]
[BlackElo "2133"]
[TimeControl "180+1"]
[EndTime "14:19:02 PDT"]
[Termination "Good_Knight_Kiss won by resignation"]

1. e4 {[%clk 0:03:00.9]} 1... c5 {[%clk 0:02:59.2]} 2. Nf3 {[%clk 0:02:58.5]}
2... e6 {[%clk 0:02:59.5]} 3. d4 {[%clk 0:02:57.8]} 3... cxd4 {[%clk 0:02:59.9]}
4. Nxd4 {[%clk 0:02:57.7]} 4... a6 {[%clk 0:03:00.4]} 5. Nc3 {[%clk 0:02:58]}
5... Qc7 {[%clk 0:03:00.7]} 6. g3 {[%clk 0:02:58.4]} 6... Nf6 {[%clk 0:02:59.4]}
7. Bg2 {[%clk 0:02:57.9]} 7... Nc6 {[%clk 0:02:58.1]} 8. O-O {[%clk 0:02:53.9]}
8... Nxd4 {[%clk 0:02:56.4]} 9. Qxd4 {[%clk 0:02:53.6]} 9... Bc5 {[%clk
0:02:56]} 10. Bf4 {[%clk 0:02:54.2]} 10... Bxd4 {[%clk 0:02:49.2]} 11. Bxc7
{[%clk 0:02:53.8]} 11... O-O {[%clk 0:02:45.6]} 12. Bd6 {[%clk 0:02:44.2]} 12...
Re8 {[%clk 0:02:37]} 13. e5 {[%clk 0:02:14.2]} 13... Ng4 {[%clk 0:02:35.2]} 14.
Rae1 {[%clk 0:02:10]} 14... f6 {[%clk 0:02:32.5]} 15. exf6 {[%clk 0:02:05]}
15... Nxf6 {[%clk 0:02:31.9]} 16. h3 {[%clk 0:01:19]} 16... Bxc3 {[%clk
0:02:05.7]} 17. bxc3 {[%clk 0:01:18.6]} 17... a5 {[%clk 0:02:06.2]} 18. c4
{[%clk 0:01:15.6]} 18... Ra6 {[%clk 0:02:05.4]} 19. c5 {[%clk 0:01:15.5]} 19...
a4 {[%clk 0:02:05.1]} 20. Rb1 {[%clk 0:01:10.1]} 20... Nd5 {[%clk 0:01:55.4]}
21. c4 {[%clk 0:01:05]} 21... Nc3 {[%clk 0:01:48.7]} 22. Rb2 {[%clk 0:01:04.8]}
22... a3 {[%clk 0:01:45.1]} 23. Rc2 {[%clk 0:01:04.7]} 23... Na4 {[%clk
0:01:40.4]} 24. Rb1 {[%clk 0:00:59.1]} 24... Ra5 {[%clk 0:01:37.1]} 25. Rb5
{[%clk 0:00:54.8]} 25... Ra7 {[%clk 0:01:20.4]} 26. Rb3 {[%clk 0:00:53]} 26...
Ra5 {[%clk 0:01:19.2]} 27. Rxa3 {[%clk 0:00:50.5]} 27... Ra6 {[%clk 0:00:55.1]}
28. Rc1 {[%clk 0:00:47.4]} 28... b6 {[%clk 0:00:50.9]} 29. cxb6 {[%clk
0:00:43.8]} 29... Nxb6 {[%clk 0:00:51.2]} 30. Rxa6 {[%clk 0:00:26.1]} 30... Bxa6
{[%clk 0:00:51.5]} 31. c5 {[%clk 0:00:24.6]} 31... Nd5 {[%clk 0:00:48.1]} 32.
Rb1 {[%clk 0:00:19]} 32... Nc3 {[%clk 0:00:41.4]} 33. Rb2 {[%clk 0:00:18.6]}
33... Bc4 {[%clk 0:00:40.5]} 34. Rc2 {[%clk 0:00:14.5]} 34... Ne2+ {[%clk
0:00:37]} 35. Kh2 {[%clk 0:00:14.1]} 35... Bb5 {[%clk 0:00:36.9]} 36. Bf1 {[%clk
0:00:13.6]} 36... Nd4 {[%clk 0:00:34.5]} 37. Rc1 {[%clk 0:00:10.6]} 37... Nf3+
{[%clk 0:00:30.9]} 38. Kh1 {[%clk 0:00:10.1]} 38... Bc6 {[%clk 0:00:27.6]} 39.
Bg2 {[%clk 0:00:10.4]} 39... Ra8 {[%clk 0:00:27.8]} 40. Rc2 {[%clk 0:00:08.8]}
40... g5 {[%clk 0:00:26.3]} 41. Rb2 {[%clk 0:00:06.5]} 41... Kf7 {[%clk
0:00:26.1]} 42. Rb8 {[%clk 0:00:05.2]} 42... Rxa2 {[%clk 0:00:25.6]} 43. Rf8+
{[%clk 0:00:05.2]} 43... Kg6 {[%clk 0:00:24.9]} 44. Bxf3 {[%clk 0:00:05.7]}
44... Bxf3+ {[%clk 0:00:18.3]} 45. Rxf3 {[%clk 0:00:05.3]} 45... h5 {[%clk
0:00:18.3]} 46. g4 {[%clk 0:00:05]} 46... Ra4 {[%clk 0:00:16.5]} 47. Rg3 {[%clk
0:00:04.4]} 47... Re4 {[%clk 0:00:13.8]} 48. Kg2 {[%clk 0:00:04.1]} 48... e5
{[%clk 0:00:12.2]} 49. Re3 {[%clk 0:00:04]} 49... Rxe3 {[%clk 0:00:11.3]} 50.
fxe3 {[%clk 0:00:03.9]} 50... hxg4 {[%clk 0:00:09.9]} 51. hxg4 {[%clk
0:00:03.9]} 51... Kf6 {[%clk 0:00:10.4]} 52. Kf3 {[%clk 0:00:04.3]} 52... Ke6
{[%clk 0:00:10.4]} 53. Ke4 {[%clk 0:00:04.6]} 1-0

[Event "Late-Titled-Tuesday-Blitz-April-23-2024"]
[Site "Chess.com"]
[Date "2024.04.23"]
[Round "2"]
[White "Fh2411"]
[Black "NovakRatko"]
[Result "0-1"]
[WhiteElo "2556"]
[BlackElo "2392"]
[TimeControl "180+1"]
[EndTime "14:19:03 PDT"]
[Termination "NovakRatko won on time"]

1. d4 {[%clk 0:02:13.6]} 1... d5 {[%clk 0:02:59.1]} 2. Nf3 {[%clk 0:02:13]} 2...
c5 {[%clk 0:02:59.5]} 3. c3 {[%clk 0:02:10.8]} 3... cxd4 {[%clk 0:02:58.6]} 4.
cxd4 {[%clk 0:02:11.7]} 4... Nc6 {[%clk 0:02:58.1]} 5. Nc3 {[%clk 0:02:11.4]}
5... f6 {[%clk 0:02:57.8]} 6. Bf4 {[%clk 0:01:43.4]} 6... Bg4 {[%clk 0:02:56.8]}
7. h3 {[%clk 0:00:58.7]} 7... Bh5 {[%clk 0:02:33.1]} 8. e3 {[%clk 0:00:53.2]}
8... e5 {[%clk 0:02:11.3]} 9. Bh2 {[%clk 0:00:50.7]} 9... e4 {[%clk 0:02:05.5]}
10. g4 {[%clk 0:00:49.8]} 10... Bf7 {[%clk 0:02:05]} 11. Nd2 {[%clk 0:00:46.6]}
11... Bd6 {[%clk 0:02:01.6]} 12. Bxd6 {[%clk 0:00:37.9]} 12... Qxd6 {[%clk
0:02:01]} 13. Qb3 {[%clk 0:00:38.1]} 13... Nge7 {[%clk 0:01:57.8]} 14. Qxb7
{[%clk 0:00:26.8]} 14... Rb8 {[%clk 0:01:55.9]} 15. Nb5 {[%clk 0:00:26.1]} 15...
Qb4 {[%clk 0:01:34.4]} 16. Nc7+ {[%clk 0:00:25.6]} 16... Kd7 {[%clk 0:01:34.2]}
17. Qxb4 {[%clk 0:00:18.9]} 17... Nxb4 {[%clk 0:01:22]} 18. Na6 {[%clk 0:00:16]}
18... Nc2+ {[%clk 0:01:17.6]} 19. Kd1 {[%clk 0:00:16.4]} 19... Nxa1 {[%clk
0:01:17.8]} 20. Nc5+ {[%clk 0:00:13.5]} 20... Kd6 {[%clk 0:01:08.4]} 21. b3
{[%clk 0:00:13.9]} 21... h5 {[%clk 0:00:50.4]} 22. Be2 {[%clk 0:00:12.4]} 22...
hxg4 {[%clk 0:00:49.6]} 23. Bxg4 {[%clk 0:00:13.3]} 23... f5 {[%clk 0:00:45.9]}
24. Be2 {[%clk 0:00:12.9]} 24... g5 {[%clk 0:00:45.2]} 25. Kc1 {[%clk
0:00:12.9]} 25... Be6 {[%clk 0:00:30.2]} 26. Kb2 {[%clk 0:00:12.9]} 26... Nxb3
{[%clk 0:00:29.7]} 27. axb3 {[%clk 0:00:13.8]} 27... f4 {[%clk 0:00:30.3]} 28.
Rg1 {[%clk 0:00:12.7]} 28... Rbg8 {[%clk 0:00:22.7]} 29. Bg4 {[%clk 0:00:11.9]}
29... Bxg4 {[%clk 0:00:21]} 30. hxg4 {[%clk 0:00:12.8]} 30... fxe3 {[%clk
0:00:18.7]} 31. fxe3 {[%clk 0:00:12.7]} 31... Rh2 {[%clk 0:00:17.3]} 32. Kc3
{[%clk 0:00:12.7]} 32... Rf8 {[%clk 0:00:16.6]} 33. Ra1 {[%clk 0:00:12.6]} 33...
Rff2 {[%clk 0:00:15.9]} 34. Ra6+ {[%clk 0:00:12.4]} 34... Kc7 {[%clk 0:00:13.8]}
35. Rxa7+ {[%clk 0:00:11.7]} 35... Kb6 {[%clk 0:00:13.6]} 36. Rxe7 {[%clk
0:00:11.3]} 36... Rxd2 {[%clk 0:00:13.9]} 37. Kb4 {[%clk 0:00:11]} 37... Rhe2
{[%clk 0:00:10.1]} 38. Re6+ {[%clk 0:00:06.6]} 38... Kc7 {[%clk 0:00:10.1]} 39.
Re5 {[%clk 0:00:06.1]} 39... Rxe3 {[%clk 0:00:10]} 40. Rxd5 {[%clk 0:00:06.6]}
40... Rg2 {[%clk 0:00:10.1]} 41. Rxg5 {[%clk 0:00:06]} 41... Kd6 {[%clk
0:00:08.8]} 42. Rg6+ {[%clk 0:00:04.9]} 42... Kd5 {[%clk 0:00:09]} 43. Ne6
{[%clk 0:00:03.1]} 43... Rh2 {[%clk 0:00:06.3]} 44. Nf4+ {[%clk 0:00:02.1]}
44... Kxd4 {[%clk 0:00:06.4]} 45. Rd6+ {[%clk 0:00:02.7]} 45... Ke5 {[%clk
0:00:06.5]} 0-1

[Event "Late-Titled-Tuesday-Blitz-April-23-2024"]
[Site "Chess.com"]
[Date "2024.04.23"]
[Round "2"]
[White "Mikayel99"]
[Black "GianmarcoVaR"]
[Result "0-1"]
[WhiteElo "2580"]
[BlackElo "2826"]
[TimeControl "180+1"]
[EndTime "14:19:11 PDT"]
[Termination "GianmarcoVaR won by checkmate"]

1. Nf3 {[%clk 0:03:00.1]} 1... Nf6 {[%clk 0:03:00.3]} 2. g3 {[%clk 0:03:00.1]}
2... g6 {[%clk 0:02:57.9]} 3. Bg2 {[%clk 0:03:00.5]} 3... Bg7 {[%clk 0:02:57.4]}
4. O-O {[%clk 0:02:58.8]} 4... O-O {[%clk 0:02:58.3]} 5. d4 {[%clk 0:02:57]}
5... d6 {[%clk 0:02:58.3]} 6. b3 {[%clk 0:02:56.4]} 6... e5 {[%clk 0:02:57.4]}
7. dxe5 {[%clk 0:02:52.9]} 7... Ng4 {[%clk 0:02:44.5]} 8. Bb2 {[%clk 0:02:49.8]}
8... Nd7 {[%clk 0:02:44.7]} 9. Qc1 {[%clk 0:02:30.1]} 9... Ngxe5 {[%clk
0:02:43.6]} 10. Nbd2 {[%clk 0:02:23.3]} 10... Re8 {[%clk 0:02:31.3]} 11. e3
{[%clk 0:02:17]} 11... c6 {[%clk 0:02:15.1]} 12. Nxe5 {[%clk 0:02:16]} 12...
Nxe5 {[%clk 0:02:11.3]} 13. Nf3 {[%clk 0:02:14]} 13... Qc7 {[%clk 0:01:20.7]}
14. Nxe5 {[%clk 0:02:13.4]} 14... dxe5 {[%clk 0:01:21.3]} 15. e4 {[%clk
0:02:03.4]} 15... h5 {[%clk 0:01:14.6]} 16. Qe3 {[%clk 0:01:56.5]} 16... Bg4
{[%clk 0:01:09.4]} 17. h3 {[%clk 0:01:56.5]} 17... Be6 {[%clk 0:01:09.7]} 18.
Rfd1 {[%clk 0:01:56.6]} 18... a5 {[%clk 0:01:05.2]} 19. a4 {[%clk 0:01:56.3]}
19... Rad8 {[%clk 0:01:04.8]} 20. Qc5 {[%clk 0:01:35.7]} 20... Bf6 {[%clk
0:00:43.4]} 21. Bc3 {[%clk 0:01:28.7]} 21... b6 {[%clk 0:00:40.5]} 22. Qe3
{[%clk 0:01:28.9]} 22... Kg7 {[%clk 0:00:40.3]} 23. Bf1 {[%clk 0:01:19.7]} 23...
h4 {[%clk 0:00:39.6]} 24. g4 {[%clk 0:01:08]} 24... Kh7 {[%clk 0:00:40.1]} 25.
Qe1 {[%clk 0:00:55.5]} 25... Bg5 {[%clk 0:00:38.1]} 26. Bd2 {[%clk 0:00:55.7]}
26... Qe7 {[%clk 0:00:32]} 27. Bxg5 {[%clk 0:00:52.5]} 27... Qxg5 {[%clk
0:00:32.9]} 28. Qe3 {[%clk 0:00:52.9]} 28... Qxe3 {[%clk 0:00:28.7]} 29. fxe3
{[%clk 0:00:53.8]} 29... Kh6 {[%clk 0:00:23]} 30. Kf2 {[%clk 0:00:53.7]} 30...
Kg5 {[%clk 0:00:22.6]} 31. Be2 {[%clk 0:00:44.5]} 31... f5 {[%clk 0:00:20.5]}
32. gxf5 {[%clk 0:00:42.2]} 32... gxf5 {[%clk 0:00:21.4]} 33. Rg1+ {[%clk
0:00:25.1]} 33... Kf6 {[%clk 0:00:21.7]} 34. Rad1 {[%clk 0:00:13.3]} 34... fxe4
{[%clk 0:00:16.3]} 35. Kg2 {[%clk 0:00:10.3]} 35... Rg8+ {[%clk 0:00:15.5]} 36.
Kh2 {[%clk 0:00:10.3]} 36... Rxd1 {[%clk 0:00:15.6]} 37. Rxg8 {[%clk 0:00:07.7]}
37... Rd2 {[%clk 0:00:11.5]} 38. Rg2 {[%clk 0:00:05.6]} 38... Rxc2 {[%clk
0:00:10.9]} 39. Rf2+ {[%clk 0:00:06.3]} 39... Ke7 {[%clk 0:00:10.9]} 40. Kg2
{[%clk 0:00:06.9]} 40... Bxb3 {[%clk 0:00:10]} 41. Kf1 {[%clk 0:00:05.6]} 41...
Bxa4 {[%clk 0:00:09.4]} 42. Rf5 {[%clk 0:00:05.9]} 42... Kd6 {[%clk 0:00:08.8]}
43. Rf6+ {[%clk 0:00:05.1]} 43... Kc5 {[%clk 0:00:08.7]} 44. Re6 {[%clk
0:00:05.7]} 44... Kd5 {[%clk 0:00:06.3]} 45. Re8 {[%clk 0:00:05.2]} 45... Bb5
{[%clk 0:00:06]} 46. Rd8+ {[%clk 0:00:05.3]} 46... Ke6 {[%clk 0:00:06.4]} 47.
Bxb5 {[%clk 0:00:05.7]} 47... cxb5 {[%clk 0:00:07.3]} 48. Rb8 {[%clk 0:00:06.2]}
48... Kd5 {[%clk 0:00:06.9]} 49. Rxb6 {[%clk 0:00:06.3]} 49... Kc4 {[%clk
0:00:07]} 50. Rc6+ {[%clk 0:00:06.3]} 50... Kd3 {[%clk 0:00:07.2]} 51. Re6
{[%clk 0:00:05.2]} 51... b4 {[%clk 0:00:07]} 52. Rxe5 {[%clk 0:00:05.9]} 52...
b3 {[%clk 0:00:06.9]} 53. Rd5+ {[%clk 0:00:06.5]} 53... Kxe3 {[%clk 0:00:06.4]}
54. Rb5 {[%clk 0:00:06]} 54... a4 {[%clk 0:00:06.3]} 55. Kg1 {[%clk 0:00:06.4]}
55... b2 {[%clk 0:00:06.1]} 56. Kh1 {[%clk 0:00:02]} 56... Rc1+ {[%clk
0:00:06.2]} 57. Kg2 {[%clk 0:00:02.4]} 57... b1=Q {[%clk 0:00:06.5]} 58. Rb3+
{[%clk 0:00:02.8]} 58... axb3 {[%clk 0:00:05.9]} 59. Kh2 {[%clk 0:00:03.4]}
59... Qc2# {[%clk 0:00:06.5]} 0-1

[Event "Late-Titled-Tuesday-Blitz-April-23-2024"]
[Site "Chess.com"]
[Date "2024.04.23"]
[Round "2"]
[White "tylityli"]
[Black "NoSpaghettiForYou"]
[Result "1-0"]
[WhiteElo "2331"]
[BlackElo "2509"]
[TimeControl "180+1"]
[EndTime "14:19:13 PDT"]
[Termination "tylityli won by resignation"]

1. d4 {[%clk 0:03:00.9]} 1... Nf6 {[%clk 0:02:59.9]} 2. c4 {[%clk 0:02:58.8]}
2... e6 {[%clk 0:03:00]} 3. Nc3 {[%clk 0:02:58.9]} 3... d5 {[%clk 0:03:00.2]} 4.
cxd5 {[%clk 0:02:58.4]} 4... exd5 {[%clk 0:03:01.1]} 5. Bg5 {[%clk 0:02:58.2]}
5... c6 {[%clk 0:03:01.4]} 6. e3 {[%clk 0:02:58.4]} 6... Bd6 {[%clk 0:03:01.6]}
7. Bd3 {[%clk 0:02:59]} 7... h6 {[%clk 0:03:02]} 8. Bh4 {[%clk 0:02:58.7]} 8...
Be6 {[%clk 0:03:02.5]} 9. Nge2 {[%clk 0:02:58.6]} 9... O-O {[%clk 0:03:00.4]}
10. h3 {[%clk 0:02:58.9]} 10... a5 {[%clk 0:03:00.4]} 11. O-O {[%clk 0:02:58.2]}
11... Na6 {[%clk 0:03:00.5]} 12. a3 {[%clk 0:02:57.7]} 12... Nc7 {[%clk
0:02:56.7]} 13. Rb1 {[%clk 0:02:57.5]} 13... b5 {[%clk 0:02:37.4]} 14. f4 {[%clk
0:02:44.2]} 14... b4 {[%clk 0:02:33.9]} 15. axb4 {[%clk 0:02:34.9]} 15... axb4
{[%clk 0:02:34.8]} 16. Na4 {[%clk 0:02:34.6]} 16... Be7 {[%clk 0:02:16.4]} 17.
Nc5 {[%clk 0:02:24.4]} 17... Bxc5 {[%clk 0:02:12.7]} 18. dxc5 {[%clk 0:02:23.6]}
18... Qe7 {[%clk 0:02:12]} 19. Nd4 {[%clk 0:02:19.7]} 19... Bd7 {[%clk
0:01:50.4]} 20. Re1 {[%clk 0:02:11.4]} 20... Nce8 {[%clk 0:01:15.1]} 21. Rc1
{[%clk 0:02:02.2]} 21... g6 {[%clk 0:01:14.4]} 22. Qc2 {[%clk 0:01:54.7]} 22...
Kg7 {[%clk 0:01:11.4]} 23. Nf3 {[%clk 0:01:45]} 23... Bc8 {[%clk 0:00:47.9]} 24.
Ne5 {[%clk 0:01:43.9]} 24... Qb7 {[%clk 0:00:26.6]} 25. Bxg6 {[%clk 0:01:33.6]}
25... fxg6 {[%clk 0:00:26.6]} 26. Qxg6+ {[%clk 0:01:33.5]} 26... Kh8 {[%clk
0:00:26.3]} 27. Qxh6+ {[%clk 0:01:33.2]} 27... Kg8 {[%clk 0:00:20.6]} 28. Qg6+
{[%clk 0:01:20.2]} 28... Qg7 {[%clk 0:00:20]} 29. Qxg7+ {[%clk 0:01:14.5]} 29...
Nxg7 {[%clk 0:00:17.8]} 30. Nxc6 {[%clk 0:01:15.4]} 30... Nf5 {[%clk 0:00:14.9]}
31. Bf2 {[%clk 0:01:12.3]} 31... Ne4 {[%clk 0:00:13.9]} 32. g4 {[%clk
0:01:04.3]} 32... Ng7 {[%clk 0:00:09.2]} 33. Ne7+ {[%clk 0:01:02.4]} 33... Kf7
{[%clk 0:00:07.9]} 34. Nxd5 {[%clk 0:01:03]} 34... Be6 {[%clk 0:00:06]} 35. Nxb4
{[%clk 0:01:01.2]} 35... Rab8 {[%clk 0:00:06.7]} 36. Nd3 {[%clk 0:01:01]} 36...
Rfd8 {[%clk 0:00:07.1]} 37. Ne5+ {[%clk 0:01:00.9]} 37... Ke8 {[%clk 0:00:06.4]}
38. Re2 {[%clk 0:00:56.9]} 38... Rdc8 {[%clk 0:00:03.5]} 39. c6 {[%clk
0:00:56.2]} 39... Rb6 {[%clk 0:00:03]} 40. f5 {[%clk 0:00:44]} 40... Bd5 {[%clk
0:00:03.2]} 41. Rec2 {[%clk 0:00:40.7]} 41... Nxf2 {[%clk 0:00:03]} 42. Kxf2
{[%clk 0:00:38.7]} 42... Rc7 {[%clk 0:00:03.3]} 43. Kg3 {[%clk 0:00:33.6]} 43...
Ke7 {[%clk 0:00:03.8]} 44. Kf4 {[%clk 0:00:33.2]} 44... Ne8 {[%clk 0:00:03.6]}
45. e4 {[%clk 0:00:33]} 45... Rb4 {[%clk 0:00:02.7]} 46. Re2 {[%clk 0:00:30.1]}
46... Nf6 {[%clk 0:00:03]} 47. Rce1 {[%clk 0:00:23.5]} 47... Bc4 {[%clk
0:00:01.7]} 48. Re3 {[%clk 0:00:22.5]} 48... Nd5+ {[%clk 0:00:02.2]} 49. exd5
{[%clk 0:00:21.8]} 49... Bxd5+ {[%clk 0:00:02.8]} 50. Kg5 {[%clk 0:00:20.4]}
50... Rxb2 {[%clk 0:00:02.8]} 51. Nc4+ {[%clk 0:00:19.1]} 51... Kf7 {[%clk
0:00:03]} 52. Nxb2 {[%clk 0:00:19.4]} 52... Rxc6 {[%clk 0:00:03.7]} 53. Nd3
{[%clk 0:00:19.7]} 53... Kf8 {[%clk 0:00:03.8]} 54. Re8+ {[%clk 0:00:19.1]}
54... Kg7 {[%clk 0:00:04]} 55. R1e7+ {[%clk 0:00:19.2]} 55... Bf7 {[%clk
0:00:04.4]} 56. Ne5 {[%clk 0:00:19.2]} 56... Rf6 {[%clk 0:00:04.1]} 57. Rxf7+
{[%clk 0:00:18.6]} 57... Rxf7 {[%clk 0:00:04.7]} 58. Nxf7 {[%clk 0:00:19]} 58...
Kh7 {[%clk 0:00:05]} 59. Ra8 {[%clk 0:00:17.5]} 59... Kg7 {[%clk 0:00:05.4]} 60.
h4 {[%clk 0:00:18.1]} 60... Kh7 {[%clk 0:00:05]} 61. h5 {[%clk 0:00:18.6]} 61...
Kg7 {[%clk 0:00:05.7]} 62. h6+ {[%clk 0:00:18.7]} 62... Kxf7 {[%clk 0:00:06]}
63. h7 {[%clk 0:00:17.1]} 1-0

[Event "Late-Titled-Tuesday-Blitz-April-23-2024"]
[Site "Chess.com"]
[Date "2024.04.23"]
[Round "2"]
[White "NajdorfPlayerc5"]
[Black "PavelShkapenko"]
[Result "1-0"]
[WhiteElo "2469"]
[BlackElo "2757"]
[TimeControl "180+1"]
[EndTime "14:19:15 PDT"]
[Termination "NajdorfPlayerc5 won by checkmate"]

1. e4 {[%clk 0:03:00.9]} 1... e5 {[%clk 0:02:58.5]} 2. Nf3 {[%clk 0:03:01.4]}
2... Nc6 {[%clk 0:02:56.9]} 3. Bb5 {[%clk 0:03:01]} 3... Bc5 {[%clk 0:02:56.3]}
4. O-O {[%clk 0:02:50.5]} 4... d6 {[%clk 0:02:51.9]} 5. c3 {[%clk 0:02:49.7]}
5... Bd7 {[%clk 0:02:52.2]} 6. d4 {[%clk 0:02:49]} 6... Bb6 {[%clk 0:02:52.5]}
7. Be3 {[%clk 0:02:32.9]} 7... Nge7 {[%clk 0:02:51.9]} 8. Nbd2 {[%clk
0:02:31.4]} 8... O-O {[%clk 0:02:46.4]} 9. Re1 {[%clk 0:02:03.4]} 9... exd4
{[%clk 0:02:44.4]} 10. cxd4 {[%clk 0:02:00.4]} 10... d5 {[%clk 0:02:44.4]} 11.
exd5 {[%clk 0:01:53.2]} 11... Nxd5 {[%clk 0:02:44]} 12. Nc4 {[%clk 0:01:43.4]}
12... Nce7 {[%clk 0:02:39.4]} 13. Bxd7 {[%clk 0:01:37.8]} 13... Qxd7 {[%clk
0:02:40.3]} 14. Nfe5 {[%clk 0:01:36]} 14... Qd8 {[%clk 0:02:37.9]} 15. a4 {[%clk
0:01:31.7]} 15... c6 {[%clk 0:02:34.7]} 16. Nxb6 {[%clk 0:01:24.6]} 16... axb6
{[%clk 0:02:30.4]} 17. Qg4 {[%clk 0:01:19.7]} 17... Kh8 {[%clk 0:02:03.8]} 18.
Bd2 {[%clk 0:01:14.7]} 18... f6 {[%clk 0:02:01.2]} 19. Nc4 {[%clk 0:00:51.4]}
19... Qc8 {[%clk 0:01:49.9]} 20. Qxc8 {[%clk 0:00:38]} 20... Rfxc8 {[%clk
0:01:50.8]} 21. Nxb6 {[%clk 0:00:35.4]} 21... Nxb6 {[%clk 0:01:42.5]} 22. Rxe7
{[%clk 0:00:35.2]} 22... Nc4 {[%clk 0:01:24.2]} 23. Bc3 {[%clk 0:00:28.8]} 23...
b5 {[%clk 0:01:24.6]} 24. b3 {[%clk 0:00:27.6]} 24... Nb6 {[%clk 0:01:23.9]} 25.
Rb7 {[%clk 0:00:21.7]} 25... Nd5 {[%clk 0:01:11.4]} 26. Bd2 {[%clk 0:00:20.9]}
26... bxa4 {[%clk 0:01:03.3]} 27. bxa4 {[%clk 0:00:21.8]} 27... Ra6 {[%clk
0:00:57.4]} 28. f3 {[%clk 0:00:15.8]} 28... h5 {[%clk 0:00:57.7]} 29. a5 {[%clk
0:00:12.2]} 29... Re8 {[%clk 0:00:43.7]} 30. Re1 {[%clk 0:00:07.6]} 30... Rea8
{[%clk 0:00:35.1]} 31. Re6 {[%clk 0:00:05.6]} 31... Kh7 {[%clk 0:00:31.8]} 32.
g4 {[%clk 0:00:05.8]} 32... hxg4 {[%clk 0:00:31.4]} 33. fxg4 {[%clk 0:00:06.7]}
33... Kg6 {[%clk 0:00:31.7]} 34. Kf2 {[%clk 0:00:05.4]} 34... Rxa5 {[%clk
0:00:16.9]} 35. Bxa5 {[%clk 0:00:04.4]} 35... Rxa5 {[%clk 0:00:17.5]} 36. Rxc6
{[%clk 0:00:03.4]} 36... Ra2+ {[%clk 0:00:18.1]} 37. Kg3 {[%clk 0:00:03]} 37...
Ra3+ {[%clk 0:00:18.3]} 38. Kg2 {[%clk 0:00:03.5]} 38... Nf4+ {[%clk 0:00:18.2]}
39. Kf1 {[%clk 0:00:02.8]} 39... Ra1+ {[%clk 0:00:12.9]} 40. Kf2 {[%clk
0:00:03.2]} 40... Ra2+ {[%clk 0:00:13.4]} 41. Kf3 {[%clk 0:00:03]} 41... Ne2
{[%clk 0:00:12.4]} 42. Rcc7 {[%clk 0:00:02.9]} 42... f5 {[%clk 0:00:08.4]} 43.
gxf5+ {[%clk 0:00:02.6]} 43... Kxf5 {[%clk 0:00:07.7]} 44. Rf7+ {[%clk
0:00:03.2]} 44... Kg6 {[%clk 0:00:06.7]} 45. Rxg7+ {[%clk 0:00:03.4]} 45... Kh6
{[%clk 0:00:07.2]} 46. Rh7+ {[%clk 0:00:03.7]} 46... Kg6 {[%clk 0:00:07.8]} 47.
Rbg7+ {[%clk 0:00:04]} 47... Kf6 {[%clk 0:00:08.3]} 48. Rf7+ {[%clk 0:00:04.6]}
48... Kg6 {[%clk 0:00:08.9]} 49. Rhg7+ {[%clk 0:00:04.4]} 49... Kh6 {[%clk
0:00:08.7]} 50. Rg4 {[%clk 0:00:04.3]} 50... Kh5 {[%clk 0:00:07.7]} 51. Rf5+
{[%clk 0:00:03.3]} 51... Kh6 {[%clk 0:00:07.9]} 52. h4 {[%clk 0:00:03.4]} 52...
Nc3 {[%clk 0:00:07.3]} 53. Rgg5 {[%clk 0:00:02.2]} 53... Ra3 {[%clk 0:00:06.3]}
54. Ke3 {[%clk 0:00:03.1]} 54... Nd5+ {[%clk 0:00:06.1]} 55. Ke4 {[%clk
0:00:04]} 55... Nc3+ {[%clk 0:00:06.1]} 56. Ke5 {[%clk 0:00:04.3]} 56... Ra5+
{[%clk 0:00:06.4]} 57. Ke6 {[%clk 0:00:04.8]} 57... Ra6+ {[%clk 0:00:06.7]} 58.
Kf7 {[%clk 0:00:05]} 58... Ne4 {[%clk 0:00:07.1]} 59. Rh5# {[%clk 0:00:02.3]}
1-0